[Event "Skol-SM i Schack 2024, Grupp A"]
[Site "Arena Varberg, Kattegattsvagen 26, Varberg, Sweden"]
[Date "2024.10.11"]
[Round "2.11"]
[White "Wingh, Walter"]
[Black "Sniegon, Filip"]
[Result "1/2-1/2"]
[TimeControl "45 minutes + 10 seconds per move from move one."]
[WhiteFideId "1767836"]
[BlackFideId "1778277"]
[WhiteElo "1612"]
[BlackElo "1684"]

1. e4 {[%clk 00:44:57]} {[%emt 00:00:23]} c5 {[%clk 00:45:19]} {[%emt
00:00:01]} 2. Nc3 {[%clk 00:45:06]} {[%emt 00:00:01]} d6 {[%clk 00:45:27]}
{[%emt 00:00:02]} 3. f4 {[%clk 00:45:14]} {[%emt 00:00:02]} Nc6 {[%clk
00:45:29]} {[%emt 00:00:07]} 4. Nf3 {[%clk 00:45:23]} {[%emt 00:00:01]} Nf6
{[%clk 00:44:55]} {[%emt 00:00:43]} 5. Bc4 {[%clk 00:45:30]} {[%emt 00:00:04]}
e6 {[%clk 00:44:43]} {[%emt 00:00:22]} 6. d3 {[%clk 00:45:10]} {[%emt
00:00:30]} d5 {[%clk 00:44:19]} {[%emt 00:00:33]} 7. Bb3 {[%clk 00:45:09]}
{[%emt 00:00:11]} dxe4 {[%clk 00:43:48]} {[%emt 00:00:41]} 8. dxe4 {[%clk
00:45:00]} {[%emt 00:00:20]} Qxd1+ {[%clk 00:43:51]} {[%emt 00:00:06]} 9. Nxd1
{[%clk 00:45:06]} {[%emt 00:00:04]} Nxe4 {[%clk 00:43:40]} {[%emt 00:00:22]} 10.
O-O {[%clk 00:45:09]} {[%emt 00:00:07]} Be7 {[%clk 00:43:14]} {[%emt 00:00:35]}
11. Re1 {[%clk 00:42:40]} {[%emt 00:02:39]} Nf6 {[%clk 00:39:04]} {[%emt
00:04:21]} 12. Nc3 {[%clk 00:42:06]} {[%emt 00:00:43]} O-O {[%clk 00:38:00]}
{[%emt 00:01:14]} 13. Be3 {[%clk 00:41:39]} {[%emt 00:00:38]} a6 {[%clk
00:37:08]} {[%emt 00:01:02]} 14. a4 {[%clk 00:29:10]} {[%emt 00:12:39]} b6
{[%clk 00:32:20]} {[%emt 00:04:58]} 15. Bf2 {[%clk 00:28:10]} {[%emt 00:01:10]}
Bb7 {[%clk 00:31:54]} {[%emt 00:00:35]} 16. h3 {[%clk 00:19:00]} {[%emt
00:09:20]} Bd6 {[%clk 00:29:01]} {[%emt 00:03:03]} 17. Ne5 {[%clk 00:17:46]}
{[%emt 00:01:25]} Nd4 {[%clk 00:26:26]} {[%emt 00:02:45]} 18. Bxd4 {[%clk
00:14:38]} {[%emt 00:03:18]} cxd4 {[%clk 00:26:33]} {[%emt 00:00:03]} 19. Ne2
{[%clk 00:13:34]} {[%emt 00:01:13]} Bc5 {[%clk 00:26:18]} {[%emt 00:00:25]} 20.
Nd3 {[%clk 00:13:09]} {[%emt 00:00:35]} Bd5 {[%clk 00:23:38]} {[%emt 00:02:51]}
21. Bxd5 {[%clk 00:10:31]} {[%emt 00:02:47]} Nxd5 {[%clk 00:23:41]} {[%emt
00:00:07]} 22. a5 {[%clk 00:10:13]} {[%emt 00:00:29]} Nb4 {[%clk 00:23:00]}
{[%emt 00:00:51]} 23. Nxb4 {[%clk 00:08:42]} {[%emt 00:01:40]} Bxb4 {[%clk
00:20:24]} {[%emt 00:02:46]} 24. Reb1 {[%clk 00:08:25]} {[%emt 00:00:27]} Bc5
{[%clk 00:19:52]} {[%emt 00:00:42]} 25. b4 {[%clk 00:08:13]} {[%emt 00:00:20]}
Bd6 {[%clk 00:15:37]} {[%emt 00:04:27]} 26. axb6 {[%clk 00:07:33]} {[%emt
00:00:50]} Rfb8 {[%clk 00:15:20]} {[%emt 00:00:26]} 27. b5 {[%clk 00:05:46]}
{[%emt 00:01:58]} a5 {[%clk 00:14:10]} {[%emt 00:01:19]} 28. Nxd4 {[%clk
00:04:56]} {[%emt 00:01:01]} Bc5 {[%clk 00:14:01]} {[%emt 00:00:19]} 29. c3
{[%clk 00:04:06]} {[%emt 00:01:00]} Bxd4+ {[%clk 00:13:42]} {[%emt 00:00:28]}
30. cxd4 {[%clk 00:04:14]} {[%emt 00:00:02]} Rxb6 {[%clk 00:13:51]} {[%emt
00:00:01]} 31. Ra2 {[%clk 00:03:53]} {[%emt 00:00:32]} h6 {[%clk 00:13:44]}
{[%emt 00:00:17]} 32. Kf2 {[%clk 00:03:45]} {[%emt 00:00:17]} a4 {[%clk
00:13:47]} {[%emt 00:00:07]} 33. Rb4 {[%clk 00:03:09]} {[%emt 00:00:46]} a3
{[%clk 00:13:39]} {[%emt 00:00:19]} 34. Rb3 {[%clk 00:03:08]} {[%emt 00:00:10]}
Kf8 {[%clk 00:13:43]} {[%emt 00:00:06]} 35. Ke3 {[%clk 00:02:39]} {[%emt
00:00:40]} f5 {[%clk 00:12:54]} {[%emt 00:00:58]} 36. Kd3 {[%clk 00:02:36]}
{[%emt 00:00:14]} Ke7 {[%clk 00:12:21]} {[%emt 00:00:42]} 37. Kc4 {[%clk
00:02:44]} {[%emt 00:00:02]} Rc8+ {[%clk 00:12:30]} {[%emt 00:00:02]} 38. Kb4
{[%clk 00:02:38]} {[%emt 00:00:15]} Rd6 {[%clk 00:11:41]} {[%emt 00:00:59]} 39.
Rd3 {[%clk 00:02:10]} {[%emt 00:00:39]} Ra8 {[%clk 00:11:05]} {[%emt 00:00:45]}
40. Raxa3 {[%clk 00:02:05]} {[%emt 00:00:15]} Rxa3 {[%clk 00:11:14]} {[%emt
00:00:02]} 41. Kxa3 {[%clk 00:02:14]} {[%emt 00:00:01]} Kd7 {[%clk 00:11:18]}
{[%emt 00:00:06]} 42. Kb4 {[%clk 00:02:09]} {[%emt 00:00:15]} Kc7 {[%clk
00:11:22]} {[%emt 00:00:06]} 43. Ka5 {[%clk 00:01:49]} {[%emt 00:00:30]} Kb7
{[%clk 00:11:17]} {[%emt 00:00:15]} 44. Rg3 {[%clk 00:01:13]} {[%emt 00:00:46]}
Rd7 {[%clk 00:11:05]} {[%emt 00:00:22]} 45. Rg6 {[%clk 00:01:09]} {[%emt
00:00:13]} Re7 {[%clk 00:11:04]} {[%emt 00:00:11]} 46. b6 {[%clk 00:01:06]}
{[%emt 00:00:14]} Rd7 {[%clk 00:10:18]} {[%emt 00:00:56]} 47. Rxe6 {[%clk
00:01:10]} {[%emt 00:00:06]} Rxd4 {[%clk 00:10:26]} {[%emt 00:00:02]} 48. Re7+
{[%clk 00:01:16]} {[%emt 00:00:03]} Kc6 {[%clk 00:10:31]} {[%emt 00:00:04]} 49.
Rxg7 {[%clk 00:00:39]} {[%emt 00:00:48]} Rd5+ {[%clk 00:10:33]} {[%emt
00:00:08]} 50. Kb4 {[%clk 00:00:42]} {[%emt 00:00:08]} Kxb6 {[%clk 00:10:21]}
{[%emt 00:00:22]} 51. Rg6+ {[%clk 00:00:51]} Kc7 {[%clk 00:10:29]} {[%emt
00:00:02]} 52. Rxh6 {[%clk 00:00:43]} {[%emt 00:00:17]} Rd2 {[%clk 00:10:20]}
{[%emt 00:00:19]} 53. Rg6 {[%clk 00:00:43]} {[%emt 00:00:10]} Rd4+ {[%clk
00:10:26]} {[%emt 00:00:04]} 54. Kc5 {[%clk 00:00:48]} {[%emt 00:00:05]} Rxf4
{[%clk 00:10:20]} {[%emt 00:00:16]} 55. Rg7+ {[%clk 00:00:55]} {[%emt
00:00:03]} Kd8 {[%clk 00:10:28]} {[%emt 00:00:02]} 56. Kd5 {[%clk 00:00:28]}
{[%emt 00:00:37]} Re4 {[%clk 00:09:21]} {[%emt 00:01:17]} 57. g4 {[%clk
00:00:17]} {[%emt 00:00:22]} Re3 {[%clk 00:09:27]} {[%emt 00:00:04]} 58. gxf5
{[%clk 00:00:16]} {[%emt 00:00:11]} Rxh3 {[%clk 00:09:34]} {[%emt 00:00:02]} 59.
f6 {[%clk 00:00:24]} {[%emt 00:00:03]} Ke8 {[%clk 00:09:35]} {[%emt 00:00:09]}
60. Ke6 {[%clk 00:00:28]} {[%emt 00:00:06]} Re3+ {[%clk 00:09:43]} {[%emt
00:00:01]} 61. Kf5 {[%clk 00:00:36]} {[%emt 00:00:03]} Kf8 {[%clk 00:09:31]}
{[%emt 00:00:20]} 62. Rc7 {[%clk 00:00:25]} {[%emt 00:00:22]} Rf3+ {[%clk
00:09:27]} {[%emt 00:00:14]} 63. Ke5 {[%clk 00:00:32]} {[%emt 00:00:03]} Re3+
{[%clk 00:09:03]} {[%emt 00:00:34]} 64. Kf4 {[%clk 00:00:41]} {[%emt 00:00:02]}
Re1 {[%clk 00:09:10]} {[%emt 00:00:02]} 65. Kg5 {[%clk 00:00:17]} {[%emt
00:00:34]} Rg1+ {[%clk 00:09:18]} {[%emt 00:00:01]} 66. Kf5 {[%clk 00:00:24]}
{[%emt 00:00:04]} Rf1+ {[%clk 00:09:26]} {[%emt 00:00:01]} 1/2-1/2

[Event "Skol-SM i Schack 2024, Grupp A"]
[Site "Arena Varberg, Kattegattsvagen 26, Varberg, Sweden"]
[Date "2024.10.11"]
[Round "1.8"]
[White "Abdulkader, Ahmad"]
[Black "Persson, Sebastian"]
[Result "0-1"]
[TimeControl "45 minutes + 10 seconds per move from move one."]
[WhiteFideId "1776550"]
[BlackFideId "1764187"]
[WhiteElo "1613"]
[BlackElo "1860"]

1. e4 {[%clk 00:45:18]} {[%emt 00:00:01]} d6 {[%clk 00:45:16]} {[%emt
00:00:04]} 2. Nc3 {[%clk 00:45:24]} {[%emt 00:00:04]} Nf6 {[%clk 00:45:22]}
{[%emt 00:00:04]} 3. d4 {[%clk 00:45:30]} {[%emt 00:00:05]} g6 {[%clk
00:45:26]} {[%emt 00:00:06]} 4. Bg5 {[%clk 00:45:18]} {[%emt 00:00:21]} c6
{[%clk 00:45:21]} {[%emt 00:00:15]} 5. Qd2 {[%clk 00:44:45]} {[%emt 00:00:43]}
b5 {[%clk 00:44:50]} {[%emt 00:00:41]} 6. a3 {[%clk 00:44:47]} {[%emt
00:00:08]} Nbd7 {[%clk 00:43:34]} {[%emt 00:01:25]} 7. Bd3 {[%clk 00:44:46]}
{[%emt 00:00:11]} Bg7 {[%clk 00:42:57]} {[%emt 00:00:47]} 8. Nge2 {[%clk
00:44:52]} {[%emt 00:00:05]} O-O {[%clk 00:42:56]} {[%emt 00:00:10]} 9. O-O
{[%clk 00:44:59]} {[%emt 00:00:03]} a6 {[%clk 00:41:05]} {[%emt 00:02:01]} 10.
f4 {[%clk 00:40:40]} {[%emt 00:04:28]} e5 {[%clk 00:37:56]} {[%emt 00:03:19]}
11. fxe5 {[%clk 00:34:23]} {[%emt 00:06:28]} dxe5 {[%clk 00:38:01]} {[%emt
00:00:05]} 12. Kh1 {[%clk 00:31:53]} {[%emt 00:02:39]} exd4 {[%clk 00:31:03]}
{[%emt 00:07:08]} 13. Nxd4 {[%clk 00:30:10]} {[%emt 00:01:54]} Ne5 {[%clk
00:31:08]} {[%emt 00:00:04]} 14. Nf3 {[%clk 00:27:20]} {[%emt 00:03:00]} Nxd3
{[%clk 00:29:19]} {[%emt 00:02:00]} 15. cxd3 {[%clk 00:27:27]} {[%emt
00:00:03]} Qc7 {[%clk 00:29:05]} {[%emt 00:00:23]} 16. Rac1 {[%clk 00:24:29]}
{[%emt 00:03:08]} Be6 {[%clk 00:25:13]} {[%emt 00:04:02]} 17. Bh6 {[%clk
00:16:53]} {[%emt 00:07:45]} Rad8 {[%clk 00:22:40]} {[%emt 00:02:43]} 18. Bg5
{[%clk 00:12:57]} {[%emt 00:04:07]} Rd7 {[%clk 00:18:04]} {[%emt 00:04:47]} 19.
d4 {[%clk 00:07:02]} {[%emt 00:06:05]} Bc4 {[%clk 00:12:52]} {[%emt 00:05:21]}
20. Rfe1 {[%clk 00:05:11]} {[%emt 00:02:02]} Ne8 {[%clk 00:04:38]} {[%emt
00:08:24]} 21. Qe3 {[%clk 00:03:15]} {[%emt 00:02:06]} Nd6 {[%clk 00:03:53]}
{[%emt 00:00:54]} 22. Bf4 {[%clk 00:02:33]} {[%emt 00:00:52]} Qd8 {[%clk
00:01:53]} {[%emt 00:02:09]} 23. Ne5 {[%clk 00:02:33]} {[%emt 00:00:10]} Bxe5
{[%clk 00:02:01]} {[%emt 00:00:03]} 24. Bxe5 {[%clk 00:02:42]} {[%emt
00:00:01]} f6 {[%clk 00:02:06]} {[%emt 00:00:05]} 25. Bxd6 {[%clk 00:01:56]}
{[%emt 00:00:54]} Rxd6 {[%clk 00:02:14]} {[%emt 00:00:04]} 26. Rcd1 {[%clk
00:01:58]} {[%emt 00:00:08]} Re8 {[%clk 00:02:21]} {[%emt 00:00:02]} 27. Qf4
{[%clk 00:02:06]} {[%emt 00:00:02]} Rxd4 {[%clk 00:01:58]} {[%emt 00:00:34]} 28.
Rxd4 {[%clk 00:02:01]} {[%emt 00:00:15]} Qxd4 {[%clk 00:02:05]} {[%emt
00:00:02]} 29. Rd1 {[%clk 00:02:04]} {[%emt 00:00:08]} Qe5 {[%clk 00:01:53]}
{[%emt 00:00:22]} 30. Qe3 {[%clk 00:02:09]} {[%emt 00:00:05]} f5 {[%clk
00:01:51]} {[%emt 00:00:12]} 31. Qb6 {[%clk 00:02:01]} {[%emt 00:00:17]} fxe4
{[%clk 00:01:48]} {[%emt 00:00:13]} 32. Qxc6 {[%clk 00:02:07]} {[%emt
00:00:05]} e3 {[%clk 00:01:46]} {[%emt 00:00:11]} 33. Re1 {[%clk 00:00:17]}
{[%emt 00:02:00]} e2 {[%clk 00:01:17]} {[%emt 00:00:39]} 34. a4 {[%clk
00:00:18]} {[%emt 00:00:10]} Rf8 {[%clk 00:01:03]} {[%emt 00:00:24]} 0-1

[Event "Skol-SM i Schack 2024, Grupp A"]
[Site "Arena Varberg, Kattegattsvagen 26, Varberg, Sweden"]
[Date "2024.10.11"]
[Round "2.12"]
[White "Savela, Julina"]
[Black "Fredlund, Joel"]
[Result "1-0"]
[TimeControl "45 minutes + 10 seconds per move from move one."]
[WhiteFideId "1767437"]
[BlackFideId "1748157"]
[WhiteElo "1682"]
[BlackElo "1454"]

1. e4 e5 2. Nf3 Nc6 3. Bb5 d6 4. d4 exd4 5. Nxd4 Bd7 6. O-O Nge7 7. Nc3 a6 8.
Bc4 Ne5 9. Bb3 c5 10. Nf3 Bg4 11. Nxe5 dxe5 12. Qxg4 Qc7 13. Bd5 Rd8 14. Be3 f5
15. Qf3 b5 16. Bg5 f4 17. Bxe7 Bxe7 18. Rad1 Rd6 19. a4 b4 20. Nb1 h5 21. Bc4
g5 22. Rxd6 Qxd6 23. Rd1 Qg6 24. Qd3 Kf8 25. Qd7 g4 26. Qc8+ Kg7 27. Qxa6 Qxa6
28. Bxa6 h4 29. Rd5 Kf6 30. Nd2 g3 31. f3 {[%clk 00:03:49]} h3 {[%clk
00:29:51]} 32. Nf1 {[%clk 00:03:49]} Rh6 {[%clk 00:29:51]} 33. Bc4 {[%clk
00:03:49]} Rh5 {[%clk 00:29:51]} 34. hxg3 {[%clk 00:03:49]} fxg3 {[%clk
00:29:51]} 35. gxh3 {[%clk 00:03:49]} Kg6 {[%clk 00:29:51]} 36. Kg2 {[%clk
00:03:49]} Bh4 {[%clk 00:29:51]} 1-0

[Event "Skol-SM i Schack 2024, Grupp A"]
[Site "Arena Varberg, Kattegattsvagen 26, Varberg, Sweden"]
[Date "2024.10.11"]
[Round "1.9"]
[White "Wedenberg, Oliver"]
[Black "Wingh, Walter"]
[Result "1-0"]
[TimeControl "45 minutes + 10 seconds per move from move one."]
[WhiteFideId "1767909"]
[BlackFideId "1767836"]
[WhiteElo "1858"]
[BlackElo "1612"]

1. e4 {[%clk 00:45:16]} {[%emt 00:00:02]} e6 {[%clk 00:45:18]} {[%emt
00:00:03]} 2. d4 {[%clk 00:45:17]} {[%emt 00:00:09]} d5 {[%clk 00:45:23]}
{[%emt 00:00:05]} 3. e5 {[%clk 00:45:25]} {[%emt 00:00:02]} c5 {[%clk
00:45:32]} {[%emt 00:00:01]} 4. c3 {[%clk 00:45:34]} {[%emt 00:00:01]} Nc6
{[%clk 00:45:41]} {[%emt 00:00:01]} 5. Nf3 {[%clk 00:45:42]} {[%emt 00:00:02]}
Qb6 {[%clk 00:45:50]} {[%emt 00:00:02]} 6. Bd3 {[%clk 00:45:49]} {[%emt
00:00:03]} Bd7 {[%clk 00:45:53]} {[%emt 00:00:07]} 7. dxc5 {[%clk 00:45:36]}
{[%emt 00:00:22]} Bxc5 {[%clk 00:45:50]} {[%emt 00:00:12]} 8. O-O {[%clk
00:45:40]} {[%emt 00:00:07]} Qc7 {[%clk 00:38:25]} {[%emt 00:07:36]} 9. Re1
{[%clk 00:44:16]} {[%emt 00:01:34]} Nge7 {[%clk 00:38:24]} {[%emt 00:00:10]} 10.
b4 {[%clk 00:39:15]} {[%emt 00:05:11]} Bb6 {[%clk 00:38:26]} {[%emt 00:00:09]}
11. a4 {[%clk 00:33:49]} {[%emt 00:05:36]} Qd8 {[%clk 00:31:11]} {[%emt
00:07:24]} 12. Bg5 {[%clk 00:32:16]} {[%emt 00:01:42]} O-O {[%clk 00:27:18]}
{[%emt 00:04:04]} 13. Bc2 {[%clk 00:28:02]} {[%emt 00:04:24]} Qe8 {[%clk
00:23:32]} {[%emt 00:03:56]} 14. b5 {[%clk 00:26:20]} {[%emt 00:01:53]} Na5
{[%clk 00:21:49]} {[%emt 00:01:52]} 15. Qd3 {[%clk 00:25:41]} {[%emt 00:00:48]}
Ng6 {[%clk 00:19:54]} {[%emt 00:02:05]} 16. h4 {[%clk 00:23:43]} {[%emt
00:02:09]} f5 {[%clk 00:15:55]} {[%emt 00:04:09]} 17. exf6 {[%clk 00:22:46]}
{[%emt 00:01:07]} gxf6 {[%clk 00:15:52]} {[%emt 00:00:12]} 18. Bh6 {[%clk
00:21:42]} {[%emt 00:01:15]} Rf7 {[%clk 00:15:52]} {[%emt 00:00:10]} 19. h5
{[%clk 00:20:57]} {[%emt 00:00:55]} Ne7 {[%clk 00:15:18]} {[%emt 00:00:45]} 20.
Nh4 {[%clk 00:16:29]} {[%emt 00:04:36]} Bc7 {[%clk 00:10:49]} {[%emt 00:04:40]}
21. f4 {[%clk 00:13:50]} {[%emt 00:02:49]} e5 {[%clk 00:06:05]} {[%emt
00:04:54]} 22. Nd2 {[%clk 00:10:33]} {[%emt 00:03:26]} e4 {[%clk 00:05:19]}
{[%emt 00:00:57]} 23. Qe2 {[%clk 00:08:42]} {[%emt 00:01:59]} f5 {[%clk
00:03:30]} {[%emt 00:02:01]} 24. Rad1 {[%clk 00:06:50]} {[%emt 00:02:01]} Rf6
{[%clk 00:03:31]} {[%emt 00:00:10]} 25. Bg5 {[%clk 00:06:55]} {[%emt 00:00:04]}
Rd6 {[%clk 00:03:33]} {[%emt 00:00:07]} 26. Nf1 {[%clk 00:06:16]} {[%emt
00:00:51]} Bb6+ {[%clk 00:02:57]} {[%emt 00:00:46]} 27. Kh1 {[%clk 00:06:18]}
{[%emt 00:00:08]} Nc4 {[%clk 00:02:47]} {[%emt 00:00:20]} 28. Bb3 {[%clk
00:05:53]} {[%emt 00:00:35]} Rc8 {[%clk 00:02:56]} {[%emt 00:00:02]} 29. h6
{[%clk 00:05:31]} {[%emt 00:00:31]} Be6 {[%clk 00:02:45]} {[%emt 00:00:22]} 30.
Ng3 {[%clk 00:03:30]} {[%emt 00:02:11]} Ne3 {[%clk 00:01:23]} {[%emt 00:01:31]}
31. Nh5 {[%clk 00:03:15]} {[%emt 00:00:25]} Ng4 {[%clk 00:01:27]} {[%emt
00:00:06]} 32. Nf6+ {[%clk 00:01:34]} {[%emt 00:01:51]} Nxf6 {[%clk 00:01:34]}
{[%emt 00:00:03]} 33. Bxf6 {[%clk 00:01:43]} Ng6 {[%clk 00:01:05]} {[%emt
00:00:40]} 34. Qh5 {[%clk 00:01:08]} {[%emt 00:00:44]} Bf2 {[%clk 00:01:00]}
{[%emt 00:00:15]} 35. Nxg6 {[%clk 00:00:45]} {[%emt 00:00:33]} Qxg6 {[%clk
00:00:43]} {[%emt 00:00:28]} 36. Qxg6+ {[%clk 00:00:54]} {[%emt 00:00:01]} hxg6
{[%clk 00:00:52]} {[%emt 00:00:01]} 37. Re2 {[%clk 00:00:40]} {[%emt 00:00:24]}
e3 {[%clk 00:00:25]} {[%emt 00:00:36]} 38. Be5 {[%clk 00:00:15]} {[%emt
00:00:35]} Rd7 {[%clk 00:00:26]} {[%emt 00:00:10]} 39. Ra1 {[%clk 00:00:12]}
{[%emt 00:00:12]} Kh7 {[%clk 00:00:34]} {[%emt 00:00:02]} 40. Bg7 {[%clk
00:00:20]} {[%emt 00:00:01]} Rh8 {[%clk 00:00:33]} {[%emt 00:00:12]} 41. a5
{[%clk 00:00:22]} {[%emt 00:00:08]} Kg8 {[%clk 00:00:42]} 42. Bxh8 {[%clk
00:00:28]} {[%emt 00:00:04]} Kxh8 {[%clk 00:00:49]} {[%emt 00:00:03]} 43. a6
{[%clk 00:00:35]} {[%emt 00:00:04]} b6 {[%clk 00:00:57]} {[%emt 00:00:01]} 44.
Rd1 {[%clk 00:00:36]} {[%emt 00:00:09]} Kh7 {[%clk 00:01:05]} {[%emt 00:00:03]}
45. Kh2 {[%clk 00:00:37]} {[%emt 00:00:08]} Kxh6 {[%clk 00:01:14]} {[%emt
00:00:02]} 46. g3 {[%clk 00:00:45]} Kg7 {[%clk 00:00:23]} {[%emt 00:01:01]} 47.
Kg2 {[%clk 00:00:36]} {[%emt 00:00:19]} Kf6 {[%clk 00:00:22]} {[%emt 00:00:11]}
48. Rh1 {[%clk 00:00:19]} {[%emt 00:00:26]} Rc7 {[%clk 00:00:28]} {[%emt
00:00:05]} 49. Rc2 {[%clk 00:00:22]} {[%emt 00:00:07]} Rc5 {[%clk 00:00:32]}
{[%emt 00:00:06]} 50. Rh7 {[%clk 00:00:20]} {[%emt 00:00:12]} Bf7 {[%clk
00:00:25]} {[%emt 00:00:18]} 51. Ba4 {[%clk 00:00:14]} {[%emt 00:00:15]} Rc4
{[%clk 00:00:24]} {[%emt 00:00:11]} 52. Bb3 {[%clk 00:00:22]} {[%emt 00:00:02]}
Rc5 {[%clk 00:00:33]} {[%emt 00:00:01]} 53. Ba4 {[%clk 00:00:16]} {[%emt
00:00:16]} Rc4 {[%clk 00:00:42]} {[%emt 00:00:02]} 54. Bb3 {[%clk 00:00:16]}
{[%emt 00:00:09]} Rc5 {[%clk 00:00:51]} 55. Rh8 {[%clk 00:00:23]} {[%emt
00:00:04]} Rxb5 {[%clk 00:00:56]} {[%emt 00:00:04]} 56. Ba4 {[%clk 00:00:13]}
{[%emt 00:00:21]} Ra5 {[%clk 00:00:55]} {[%emt 00:00:10]} 57. Bc6 {[%clk
00:00:13]} {[%emt 00:00:10]} Rxa6 {[%clk 00:00:46]} {[%emt 00:00:19]} 58. Rd8
{[%clk 00:00:21]} {[%emt 00:00:01]} Ra5 {[%clk 00:00:56]} {[%emt 00:00:02]} 59.
Rd6+ {[%clk 00:00:22]} {[%emt 00:00:08]} Ke7 {[%clk 00:00:31]} {[%emt
00:00:34]} 60. Rd7+ {[%emt 00:00:01]} Ke6 61. Rc1 {[%clk 00:00:33]} {[%emt
00:00:07]} Be8 {[%clk 00:00:37]} {[%emt 00:00:15]} 62. Rc7 {[%clk 00:00:34]}
{[%emt 00:00:09]} Rc5 {[%clk 00:00:25]} {[%emt 00:00:23]} 63. Bxe8 {[%clk
00:00:16]} {[%emt 00:00:27]} Rxc7 {[%clk 00:00:33]} {[%emt 00:00:02]} 64. Bxg6
{[%clk 00:00:25]} a5 {[%clk 00:00:29]} {[%emt 00:00:14]} 65. Be8 {[%clk
00:00:26]} {[%emt 00:00:08]} d4 {[%clk 00:00:32]} {[%emt 00:00:08]} 66. c4
{[%clk 00:00:33]} {[%emt 00:00:04]} d3 {[%clk 00:00:39]} {[%emt 00:00:02]} 67.
Bh5 {[%clk 00:00:22]} {[%emt 00:00:21]} d2 {[%clk 00:00:16]} {[%emt 00:00:34]}
68. Rb1 {[%clk 00:00:31]} {[%emt 00:00:01]} Rc6 {[%clk 00:00:20]} {[%emt
00:00:05]} 69. Be2 {[%clk 00:00:36]} {[%emt 00:00:04]} Kd6 {[%clk 00:00:26]}
{[%emt 00:00:05]} 70. Kf3 {[%clk 00:00:31]} {[%emt 00:00:15]} Kc5 {[%clk
00:00:30]} {[%emt 00:00:06]} 71. Rb5+ {[%clk 00:00:40]} {[%emt 00:00:02]} Kd6
{[%clk 00:00:36]} {[%emt 00:00:03]} 72. Rd5+ {[%clk 00:00:43]} {[%emt
00:00:06]} Ke6 {[%clk 00:00:44]} {[%emt 00:00:03]} 73. Re5+ {[%clk 00:00:44]}
{[%emt 00:00:10]} Kf6 {[%clk 00:00:52]} {[%emt 00:00:02]} 74. Rb5 {[%clk
00:00:49]} {[%emt 00:00:04]} Rxc4 {[%clk 00:00:44]} {[%emt 00:00:18]} 75. Rxb6+
{[%clk 00:00:55]} {[%emt 00:00:04]} Ke7 {[%clk 00:00:51]} {[%emt 00:00:03]} 76.
Rb7+ {[%clk 00:00:53]} {[%emt 00:00:12]} Kd6 {[%clk 00:01:00]} {[%emt
00:00:01]} 77. Bd1 {[%clk 00:00:55]} {[%emt 00:00:08]} Rc1 {[%clk 00:01:05]}
{[%emt 00:00:05]} 78. Ke2 {[%clk 00:01:04]} {[%emt 00:00:01]} Rc7 {[%clk
00:00:35]} {[%emt 00:00:41]} 79. Rb5 {[%clk 00:01:04]} {[%emt 00:00:09]} Rc5
{[%clk 00:00:44]} 80. Rb6+ {[%clk 00:01:13]} {[%emt 00:00:01]} Kd5 {[%clk
00:00:52]} {[%emt 00:00:02]} 81. Kd3 {[%clk 00:00:54]} {[%emt 00:00:29]} Rc6
{[%clk 00:00:36]} {[%emt 00:00:27]} 82. Bf3+ {[%clk 00:00:58]} {[%emt
00:00:06]} Kc5 {[%clk 00:00:22]} {[%emt 00:00:24]} 83. Rxc6+ {[%clk 00:01:05]}
{[%emt 00:00:02]} Kb5 {[%clk 00:00:32]} 84. Rf6 {[%clk 00:00:38]} {[%emt
00:00:35]} a4 {[%clk 00:00:40]} {[%emt 00:00:03]} 85. Rxf5+ {[%clk 00:00:47]}
{[%emt 00:00:02]} Kb4 {[%clk 00:00:49]} 86. Kc2 {[%clk 00:00:22]} {[%emt
00:00:33]} a3 {[%clk 00:00:44]} {[%emt 00:00:17]} 87. g4 {[%clk 00:00:20]}
{[%emt 00:00:12]} Bg3 {[%clk 00:00:11]} {[%emt 00:00:43]} 88. g5 {[%clk
00:00:23]} {[%emt 00:00:07]} a2 {[%clk 00:00:19]} {[%emt 00:00:02]} 89. Kb2
{[%clk 00:00:28]} {[%emt 00:00:04]} a1=Q+ {[%clk 00:00:20]} {[%emt 00:00:10]}
90. Kxa1 {[%emt 00:00:05]} Kc3 91. Be2 {[%clk 00:00:22]} {[%emt 00:00:19]} Kc2
{[%clk 00:00:31]} {[%emt 00:00:10]} 92. Rc5+ {[%clk 00:00:31]} {[%emt
00:00:01]} Kb3 {[%clk 00:00:39]} {[%emt 00:00:02]} 93. g6 {[%clk 00:00:24]}
{[%emt 00:00:16]} Bxf4 {[%clk 00:00:43]} {[%emt 00:00:07]} 94. g7 {[%clk
00:00:28]} {[%emt 00:00:05]} Kb4 {[%clk 00:00:38]} {[%emt 00:00:17]} 95. Rc4+
{[%clk 00:00:33]} {[%emt 00:00:04]} Kb3 {[%clk 00:00:35]} {[%emt 00:00:13]} 96.
g8=Q {[%clk 00:00:29]} {[%emt 00:00:13]} Be5+ {[%clk 00:00:44]} 97. Rd4+ {[%clk
00:00:34]} {[%emt 00:00:04]} 1-0